[Event "*** Titled Tuesday Blitz"]
[Site "Chess.com"]
[Date "2020.05.12"]
[Round "7"]
[White "XiaoKangZhong"]
[Black "ajdemipopushi"]
[Result "1-0"]
[WhiteElo "2410"]
[BlackElo "2218"]
[TimeControl "180+1"]
[EndTime "11:16:38 PDT"]
[Termination "XiaoKangZhong won on time"]

1. e4 {[%clk 0:03:00.9]} 1... c5 {[%clk 0:02:59.8]} 2. c3 {[%clk 0:02:46.5]}
2... d5 {[%clk 0:02:59.3]} 3. exd5 {[%clk 0:02:47.4]} 3... Qxd5 {[%clk 0:02:59]}
4. d4 {[%clk 0:02:48.3]} 4... g6 {[%clk 0:02:59.5]} 5. Nf3 {[%clk 0:02:47.2]}
5... Bg7 {[%clk 0:02:58.9]} 6. Na3 {[%clk 0:02:47.4]} 6... Nf6 {[%clk
0:02:48.6]} 7. Be3 {[%clk 0:02:41.5]} 7... cxd4 {[%clk 0:02:46.5]} 8. Nb5 {[%clk
0:02:37.6]} 8... Na6 {[%clk 0:02:42.9]} 9. Nbxd4 {[%clk 0:02:16]} 9... Nc7
{[%clk 0:01:54.7]} 10. Bf4 {[%clk 0:02:01.1]} 10... Ne6 {[%clk 0:01:47.9]} 11.
Nxe6 {[%clk 0:01:48.4]} 11... Qxe6+ {[%clk 0:01:46.5]} 12. Be2 {[%clk
0:01:48.2]} 12... Nd5 {[%clk 0:01:22.5]} 13. Bg3 {[%clk 0:01:45.5]} 13... O-O
{[%clk 0:00:55.1]} 14. O-O {[%clk 0:01:42.3]} 14... Nf6 {[%clk 0:00:46]} 15. Nd4
{[%clk 0:01:39.4]} 15... Qb6 {[%clk 0:00:32.6]} 16. Nb5 {[%clk 0:01:24.6]} 16...
Be6 {[%clk 0:00:23.2]} 17. Nc7 {[%clk 0:01:18.6]} 17... Rad8 {[%clk 0:00:21.9]}
18. Qc2 {[%clk 0:01:15]} 18... Bf5 {[%clk 0:00:21.3]} 19. Qb3 {[%clk 0:01:14.4]}
19... Qxb3 {[%clk 0:00:18.8]} 20. axb3 {[%clk 0:01:15.3]} 20... a6 {[%clk
0:00:17.8]} 21. Bf3 {[%clk 0:01:12.6]} 21... Ne4 {[%clk 0:00:17.5]} 22. Bxe4
{[%clk 0:01:10.4]} 22... Bxe4 {[%clk 0:00:17.5]} 23. Rfe1 {[%clk 0:01:11.1]}
23... f5 {[%clk 0:00:16.6]} 24. f3 {[%clk 0:01:08.3]} 24... Bc6 {[%clk
0:00:15.2]} 25. Rxe7 {[%clk 0:01:06.9]} 25... Rd2 {[%clk 0:00:13.9]} 26. Ne6
{[%clk 0:01:00]} 26... Bf6 {[%clk 0:00:13]} 27. Rc7 {[%clk 0:00:39.6]} 27... Re8
{[%clk 0:00:12.3]} 28. Bf4 {[%clk 0:00:20.3]} 28... Rxb2 {[%clk 0:00:10.1]} 29.
Nd4 {[%clk 0:00:19.9]} 29... Bxd4+ {[%clk 0:00:08.5]} 30. cxd4 {[%clk
0:00:20.8]} 30... Ree2 {[%clk 0:00:08.4]} 31. Rc8+ {[%clk 0:00:11.3]} 31... Kf7
{[%clk 0:00:08]} 32. Rc7+ {[%clk 0:00:11.8]} 32... Ke8 {[%clk 0:00:07.1]} 33.
Kh1 {[%clk 0:00:08.4]} 33... Rxg2 {[%clk 0:00:04.4]} 34. Re1+ {[%clk 0:00:08.6]}
34... Kd8 {[%clk 0:00:03.5]} 35. Rxh7 {[%clk 0:00:08.7]} 1-0

[Event "*** Titled Tuesday Blitz"]
[Site "Chess.com"]
[Date "2020.05.12"]
[Round "7"]
[White "Moon_stone123"]
[Black "dopolian"]
[Result "1-0"]
[WhiteElo "2508"]
[BlackElo "2317"]
[TimeControl "180+1"]
[EndTime "11:16:40 PDT"]
[Termination "Moon_stone123 won by resignation"]

1. Nf3 {[%clk 0:03:00.9]} 1... Nf6 {[%clk 0:02:59.3]} 2. g3 {[%clk 0:03:01.8]}
2... b6 {[%clk 0:02:57.6]} 3. Bg2 {[%clk 0:03:01.5]} 3... Bb7 {[%clk 0:02:58.1]}
4. O-O {[%clk 0:03:01.4]} 4... e6 {[%clk 0:02:58.4]} 5. c4 {[%clk 0:03:00.1]}
5... Be7 {[%clk 0:02:58]} 6. Nc3 {[%clk 0:02:59]} 6... O-O {[%clk 0:02:58]} 7.
d4 {[%clk 0:02:58.6]} 7... c5 {[%clk 0:02:51.5]} 8. d5 {[%clk 0:02:57]} 8...
exd5 {[%clk 0:02:48.9]} 9. Nh4 {[%clk 0:02:57.4]} 9... d6 {[%clk 0:02:01.7]} 10.
cxd5 {[%clk 0:02:56.6]} 10... Bc8 {[%clk 0:01:52.3]} 11. e4 {[%clk 0:02:55.3]}
11... Ng4 {[%clk 0:01:36.5]} 12. Nf3 {[%clk 0:02:47.8]} 12... Bf6 {[%clk
0:01:35.3]} 13. Bf4 {[%clk 0:02:43.3]} 13... g5 {[%clk 0:01:26.7]} 14. Bd2
{[%clk 0:02:39.1]} 14... Nd7 {[%clk 0:01:26.1]} 15. h3 {[%clk 0:02:35.7]} 15...
Nge5 {[%clk 0:01:24.7]} 16. Nxe5 {[%clk 0:02:35.9]} 16... Nxe5 {[%clk
0:01:21.6]} 17. Qe2 {[%clk 0:02:36]} 17... Ng6 {[%clk 0:01:05.2]} 18. Rae1
{[%clk 0:02:29.3]} 18... a6 {[%clk 0:00:55.1]} 19. a4 {[%clk 0:02:28.7]} 19...
Bd7 {[%clk 0:00:42.1]} 20. Qh5 {[%clk 0:02:23.8]} 20... b5 {[%clk 0:00:35.7]}
21. axb5 {[%clk 0:02:23.2]} 21... axb5 {[%clk 0:00:35.6]} 22. Kh1 {[%clk
0:02:15.8]} 22... b4 {[%clk 0:00:35.2]} 23. Nd1 {[%clk 0:02:13.3]} 23... Ra1
{[%clk 0:00:33.5]} 24. f4 {[%clk 0:02:07.7]} 24... gxf4 {[%clk 0:00:30.7]} 25.
gxf4 {[%clk 0:02:07]} 25... Bh4 {[%clk 0:00:20.5]} 26. Re3 {[%clk 0:02:03]}
26... f5 {[%clk 0:00:19]} 27. Rg1 {[%clk 0:01:57.9]} 27... Ba4 {[%clk
0:00:08.3]} 28. b3 {[%clk 0:01:39.2]} 28... Bd7 {[%clk 0:00:05.9]} 29. e5 {[%clk
0:01:37.1]} 29... Qe7 {[%clk 0:00:04.8]} 30. Bf3 {[%clk 0:01:22.8]} 30... Be8
{[%clk 0:00:01.2]} 31. exd6 {[%clk 0:01:21.8]} 31... Qg7 {[%clk 0:00:01.5]} 32.
Kh2 {[%clk 0:01:00.7]} 32... Bf6 {[%clk 0:00:01.4]} 33. Qxf5 {[%clk 0:00:58.1]}
33... Bf7 {[%clk 0:00:01.5]} 34. Bh5 {[%clk 0:00:51.1]} 34... Bd4 {[%clk
0:00:01.7]} 35. Reg3 {[%clk 0:00:45.1]} 35... Qf6 {[%clk 0:00:01.2]} 36. Qxf6
{[%clk 0:00:42.7]} 36... Bxf6 {[%clk 0:00:02.1]} 37. Bf3 {[%clk 0:00:42.2]}
37... Kh8 {[%clk 0:00:01.7]} 38. Be3 {[%clk 0:00:41]} 38... Nh4 {[%clk
0:00:02.1]} 39. Bxc5 {[%clk 0:00:38.3]} 39... Nxf3+ {[%clk 0:00:02.8]} 40. Rxf3
{[%clk 0:00:38.4]} 40... Bxd5 {[%clk 0:00:03.7]} 41. Rd3 {[%clk 0:00:36.3]}
41... Be4 {[%clk 0:00:04.3]} 42. Rd2 {[%clk 0:00:35.3]} 42... Bc3 {[%clk
0:00:03.8]} 43. Nxc3 {[%clk 0:00:33.9]} 43... bxc3 {[%clk 0:00:04.1]} 44. Bd4+
{[%clk 0:00:32.8]} 1-0

[Event "*** Titled Tuesday Blitz"]
[Site "Chess.com"]
[Date "2020.05.12"]
[Round "7"]
[White "slowdgehammer"]
[Black "ZverevLev"]
[Result "1-0"]
[WhiteElo "2381"]
[BlackElo "2114"]
[TimeControl "180+1"]
[EndTime "11:16:42 PDT"]
[Termination "slowdgehammer won by resignation"]

1. e4 {[%clk 0:02:11.2]} 1... e5 {[%clk 0:02:25.9]} 2. Bc4 {[%clk 0:02:09.9]}
2... c6 {[%clk 0:02:16.4]} 3. Nf3 {[%clk 0:02:08.4]} 3... d5 {[%clk 0:02:08.9]}
4. Bb3 {[%clk 0:02:08.1]} 4... Bd6 {[%clk 0:01:41.4]} 5. Nc3 {[%clk 0:02:07.3]}
5... d4 {[%clk 0:01:40.2]} 6. Ne2 {[%clk 0:02:06.9]} 6... Na6 {[%clk 0:01:38.8]}
7. d3 {[%clk 0:01:52.3]} 7... Nc5 {[%clk 0:01:36]} 8. Ng3 {[%clk 0:01:51.9]}
8... Nxb3 {[%clk 0:01:35.2]} 9. axb3 {[%clk 0:01:52.8]} 9... f6 {[%clk
0:01:34.9]} 10. O-O {[%clk 0:01:51.6]} 10... Be6 {[%clk 0:01:33.1]} 11. c3
{[%clk 0:01:49.4]} 11... c5 {[%clk 0:01:29.9]} 12. b4 {[%clk 0:01:39]} 12... b6
{[%clk 0:01:24]} 13. bxc5 {[%clk 0:01:36.4]} 13... bxc5 {[%clk 0:01:24.9]} 14.
c4 {[%clk 0:01:33.8]} 14... Qd7 {[%clk 0:01:22.9]} 15. Bd2 {[%clk 0:01:26.8]}
15... Ne7 {[%clk 0:01:19.1]} 16. Qa4 {[%clk 0:01:18.5]} 16... h5 {[%clk
0:01:14.7]} 17. Ra2 {[%clk 0:01:03.9]} 17... g5 {[%clk 0:01:09.5]} 18. Rfa1
{[%clk 0:00:59.3]} 18... h4 {[%clk 0:01:06.2]} 19. Nf1 {[%clk 0:00:58.8]} 19...
g4 {[%clk 0:01:03.9]} 20. Ne1 {[%clk 0:00:58.8]} 20... Nc6 {[%clk 0:01:00.6]}
21. Nc2 {[%clk 0:00:54.1]} 21... a5 {[%clk 0:00:58.3]} 22. Na3 {[%clk
0:00:43.8]} 22... Ke7 {[%clk 0:00:55.8]} 23. Nb5 {[%clk 0:00:43.4]} 23... Rag8
{[%clk 0:00:54.3]} 24. Bxa5 {[%clk 0:00:37.7]} 24... g3 {[%clk 0:00:52.6]} 25.
Be1 {[%clk 0:00:29.3]} 25... Bh3 {[%clk 0:00:47.2]} 26. Nxd6 {[%clk 0:00:22]}
26... Kxd6 {[%clk 0:00:43.5]} 27. fxg3 {[%clk 0:00:16.8]} 27... Bxg2 {[%clk
0:00:32.7]} 28. Kxg2 {[%clk 0:00:14.7]} 28... hxg3 {[%clk 0:00:32.3]} 29. Bxg3
{[%clk 0:00:14.8]} 29... Qh3+ {[%clk 0:00:31.5]} 30. Kf2 {[%clk 0:00:15.4]}
30... f5 {[%clk 0:00:24.3]} 31. exf5 {[%clk 0:00:13.9]} 31... Qxf5+ {[%clk
0:00:23.8]} 32. Ke2 {[%clk 0:00:11.2]} 32... Rf8 {[%clk 0:00:19.6]} 33. Nd2
{[%clk 0:00:10.4]} 33... Qg4+ {[%clk 0:00:17.5]} 34. Ke1 {[%clk 0:00:11]} 34...
Rh3 {[%clk 0:00:10.3]} 35. Ne4+ {[%clk 0:00:11.1]} 1-0

[Event "*** Titled Tuesday Blitz"]
[Site "Chess.com"]
[Date "2020.05.12"]
[Round "7"]
[White "Harut-1998"]
[Black "Oleksandr_Bortnyk"]
[Result "0-1"]
[WhiteElo "2768"]
[BlackElo "2987"]
[TimeControl "180+1"]
[EndTime "11:16:43 PDT"]
[Termination "Oleksandr_Bortnyk won by resignation"]

1. d4 {[%clk 0:02:57.6]} 1... d6 {[%clk 0:02:59.7]} 2. Nf3 {[%clk 0:02:56.8]}
2... Nf6 {[%clk 0:02:59.9]} 3. g3 {[%clk 0:02:56]} 3... g6 {[%clk 0:03:00.4]} 4.
Bg2 {[%clk 0:02:55.9]} 4... Bg7 {[%clk 0:03:00.9]} 5. O-O {[%clk 0:02:56.1]}
5... O-O {[%clk 0:03:01.5]} 6. c4 {[%clk 0:02:55.6]} 6... Bf5 {[%clk 0:03:01.5]}
7. Nc3 {[%clk 0:02:55.1]} 7... Ne4 {[%clk 0:03:01.2]} 8. Bd2 {[%clk 0:02:53.7]}
8... c6 {[%clk 0:02:46.4]} 9. Nh4 {[%clk 0:02:49.8]} 9... Nxd2 {[%clk
0:02:46.5]} 10. Qxd2 {[%clk 0:02:48.2]} 10... Bc8 {[%clk 0:02:15.4]} 11. f4
{[%clk 0:02:44.4]} 11... e5 {[%clk 0:01:56]} 12. e3 {[%clk 0:02:24.9]} 12...
exd4 {[%clk 0:01:37.8]} 13. exd4 {[%clk 0:02:23.6]} 13... Qb6 {[%clk 0:01:38.5]}
14. Rad1 {[%clk 0:02:14.4]} 14... Bg4 {[%clk 0:01:38.4]} 15. Bf3 {[%clk
0:02:13.6]} 15... Bxf3 {[%clk 0:01:35.5]} 16. Nxf3 {[%clk 0:02:14.5]} 16... Nd7
{[%clk 0:01:35.1]} 17. Kg2 {[%clk 0:02:10.1]} 17... Rae8 {[%clk 0:01:34.1]} 18.
Rfe1 {[%clk 0:02:05.7]} 18... Nf6 {[%clk 0:01:28.6]} 19. h3 {[%clk 0:01:54.1]}
19... h5 {[%clk 0:01:19.7]} 20. Rxe8 {[%clk 0:01:37.1]} 20... Rxe8 {[%clk
0:01:19.4]} 21. Re1 {[%clk 0:01:38]} 21... Rxe1 {[%clk 0:01:18.3]} 22. Nxe1
{[%clk 0:01:38.9]} 22... Qb4 {[%clk 0:00:58.9]} 23. b3 {[%clk 0:01:35.2]} 23...
Nd7 {[%clk 0:00:57.1]} 24. Nc2 {[%clk 0:01:34]} 24... Qa5 {[%clk 0:00:54.6]} 25.
a4 {[%clk 0:01:15.9]} 25... c5 {[%clk 0:00:40.3]} 26. Ne4 {[%clk 0:01:03.5]}
26... Qxd2+ {[%clk 0:00:40]} 27. Nxd2 {[%clk 0:01:04.4]} 27... cxd4 {[%clk
0:00:40.9]} 28. Kf3 {[%clk 0:00:46.7]} 28... Nc5 {[%clk 0:00:41]} 29. Nb4 {[%clk
0:00:41.8]} 29... a5 {[%clk 0:00:35.9]} 30. Nd5 {[%clk 0:00:38.6]} 30... Kf8
{[%clk 0:00:28.2]} 31. g4 {[%clk 0:00:33.6]} 31... hxg4+ {[%clk 0:00:25.6]} 32.
hxg4 {[%clk 0:00:34.5]} 32... f5 {[%clk 0:00:26.1]} 33. g5 {[%clk 0:00:32.5]}
33... Kf7 {[%clk 0:00:24.6]} 34. Nb6 {[%clk 0:00:27.6]} 34... Ke6 {[%clk
0:00:22.4]} 35. Nd5 {[%clk 0:00:27.3]} 35... Kd7 {[%clk 0:00:19.3]} 36. Nb6+
{[%clk 0:00:26.4]} 36... Ke6 {[%clk 0:00:19.7]} 37. Nd5 {[%clk 0:00:27.3]} 37...
d3 {[%clk 0:00:19.5]} 38. Ke3 {[%clk 0:00:27.2]} 38... Bb2 {[%clk 0:00:19]} 39.
Nf3 {[%clk 0:00:12.6]} 39... Bc1+ {[%clk 0:00:19]} 40. Kf2 {[%clk 0:00:12.7]}
40... Nxb3 {[%clk 0:00:17.1]} 41. Nh4 {[%clk 0:00:10.7]} 41... Kf7 {[%clk
0:00:13.9]} 42. Nf3 {[%clk 0:00:08.1]} 42... Nc5 {[%clk 0:00:14.2]} 0-1

[Event "*** Titled Tuesday Blitz"]
[Site "Chess.com"]
[Date "2020.05.12"]
[Round "7"]
[White "Duong57"]
[Black "Flawless_Fighter"]
[Result "0-1"]
[WhiteElo "2264"]
[BlackElo "2479"]
[TimeControl "180+1"]
[EndTime "11:16:43 PDT"]
[Termination "Flawless_Fighter won by resignation"]

1. d4 {[%clk 0:03:00.9]} 1... Nf6 {[%clk 0:02:58.9]} 2. c4 {[%clk 0:03:00.4]}
2... e6 {[%clk 0:02:59.5]} 3. Nc3 {[%clk 0:03:00.2]} 3... Bb4 {[%clk 0:02:59.1]}
4. Qc2 {[%clk 0:03:00.7]} 4... d5 {[%clk 0:02:58.4]} 5. cxd5 {[%clk 0:03:00.3]}
5... exd5 {[%clk 0:02:58]} 6. Bg5 {[%clk 0:02:59.1]} 6... O-O {[%clk 0:02:57.7]}
7. e3 {[%clk 0:02:58.6]} 7... Re8 {[%clk 0:02:56.8]} 8. Bd3 {[%clk 0:02:57.1]}
8... h6 {[%clk 0:02:56.1]} 9. Bh4 {[%clk 0:02:54.7]} 9... c5 {[%clk 0:02:56.3]}
10. Ne2 {[%clk 0:02:44.1]} 10... c4 {[%clk 0:02:49.6]} 11. Bf5 {[%clk
0:02:42.7]} 11... Bxf5 {[%clk 0:02:48.7]} 12. Qxf5 {[%clk 0:02:41.9]} 12... Qd7
{[%clk 0:02:49.3]} 13. Qxd7 {[%clk 0:02:26.7]} 13... Nbxd7 {[%clk 0:02:50.2]}
14. O-O {[%clk 0:02:27]} 14... g5 {[%clk 0:02:39.6]} 15. Bg3 {[%clk 0:02:26.4]}
15... Rac8 {[%clk 0:02:39.3]} 16. h3 {[%clk 0:02:22.5]} 16... Re6 {[%clk
0:02:28.8]} 17. Rfc1 {[%clk 0:01:30.1]} 17... a6 {[%clk 0:02:28]} 18. a4 {[%clk
0:01:28.8]} 18... Ba5 {[%clk 0:02:22.5]} 19. Rc2 {[%clk 0:01:16.1]} 19... Kg7
{[%clk 0:02:19.1]} 20. h4 {[%clk 0:01:09.7]} 20... Rb6 {[%clk 0:02:00.3]} 21. f3
{[%clk 0:01:03.9]} 21... Re6 {[%clk 0:01:58]} 22. Kf2 {[%clk 0:01:02.5]} 22...
Rce8 {[%clk 0:01:57.4]} 23. hxg5 {[%clk 0:00:59.8]} 23... hxg5 {[%clk
0:01:56.9]} 24. Be5 {[%clk 0:00:34.5]} 24... Nxe5 {[%clk 0:01:53.8]} 25. dxe5
{[%clk 0:00:35.4]} 25... Rxe5 {[%clk 0:01:54.4]} 26. Nd4 {[%clk 0:00:36]} 26...
Kg6 {[%clk 0:01:47.4]} 27. g4 {[%clk 0:00:28.1]} 27... Bb6 {[%clk 0:01:33.9]}
28. Nf5 {[%clk 0:00:23.2]} 28... Bxe3+ {[%clk 0:01:28.2]} 29. Kg2 {[%clk
0:00:22.8]} 29... Bf4 {[%clk 0:01:20.5]} 30. Rh1 {[%clk 0:00:21.5]} 30... Rxf5
{[%clk 0:01:19.3]} 31. gxf5+ {[%clk 0:00:20.7]} 31... Kxf5 {[%clk 0:01:20.2]}
32. Rd1 {[%clk 0:00:19.6]} 32... Be3 {[%clk 0:01:00.8]} 33. Nxd5 {[%clk
0:00:18.1]} 33... Nh5 {[%clk 0:00:43.1]} 34. Nxe3+ {[%clk 0:00:16.3]} 34... Rxe3
{[%clk 0:00:44]} 35. Kf2 {[%clk 0:00:16.6]} 35... Rb3 {[%clk 0:00:42.5]} 36.
Rd5+ {[%clk 0:00:15.7]} 36... Kg6 {[%clk 0:00:41.9]} 37. Rd6+ {[%clk 0:00:15.6]}
37... f6 {[%clk 0:00:41.7]} 38. Rd4 {[%clk 0:00:15.1]} 38... b5 {[%clk 0:00:41]}
39. axb5 {[%clk 0:00:14.7]} 39... axb5 {[%clk 0:00:41.9]} 40. Rdd2 {[%clk
0:00:12.4]} 40... Nf4 {[%clk 0:00:41.9]} 41. Rd4 {[%clk 0:00:08.6]} 41... Nd3+
{[%clk 0:00:38.7]} 42. Ke2 {[%clk 0:00:08.9]} 42... Nxb2 {[%clk 0:00:37.5]} 43.
Rdd2 {[%clk 0:00:08.9]} 43... Nd3 {[%clk 0:00:35.9]} 44. Ra2 {[%clk 0:00:06.7]}
44... Nc1+ {[%clk 0:00:33.7]} 45. Kf2 {[%clk 0:00:06.3]} 45... Nxa2 {[%clk
0:00:34.1]} 46. Rxa2 {[%clk 0:00:07.1]} 46... c3 {[%clk 0:00:34.7]} 47. Ke1
{[%clk 0:00:04.5]} 47... Rb1+ {[%clk 0:00:34.3]} 0-1

[Event "*** Titled Tuesday Blitz"]
[Site "Chess.com"]
[Date "2020.05.12"]
[Round "7"]
[White "csati17"]
[Black "Y0ung_Capablanca"]
[Result "0-1"]
[WhiteElo "2535"]
[BlackElo "2703"]
[TimeControl "180+1"]
[EndTime "11:16:44 PDT"]
[Termination "Y0ung_Capablanca won by checkmate"]

1. c4 {[%clk 0:03:00.9]} 1... Nf6 {[%clk 0:02:58.8]} 2. Nc3 {[%clk 0:03:00.8]}
2... e5 {[%clk 0:02:58.2]} 3. g3 {[%clk 0:03:00.8]} 3... Bb4 {[%clk 0:02:57]} 4.
Bg2 {[%clk 0:02:59.8]} 4... O-O {[%clk 0:02:57.1]} 5. Nf3 {[%clk 0:02:52.5]}
5... Re8 {[%clk 0:02:54.4]} 6. O-O {[%clk 0:02:49.8]} 6... Nc6 {[%clk
0:02:51.4]} 7. Nd5 {[%clk 0:02:47.6]} 7... d6 {[%clk 0:02:42.2]} 8. Nxb4 {[%clk
0:02:42.3]} 8... Nxb4 {[%clk 0:02:41.8]} 9. d3 {[%clk 0:02:38.5]} 9... e4 {[%clk
0:02:41.5]} 10. dxe4 {[%clk 0:02:30.5]} 10... Nxe4 {[%clk 0:02:42.4]} 11. Nd4
{[%clk 0:02:25.8]} 11... Qf6 {[%clk 0:02:32.6]} 12. a3 {[%clk 0:02:17.4]} 12...
Nc6 {[%clk 0:02:27.9]} 13. Be3 {[%clk 0:02:13.3]} 13... Bd7 {[%clk 0:02:23.9]}
14. Nxc6 {[%clk 0:02:09]} 14... Bxc6 {[%clk 0:02:24.8]} 15. Bd4 {[%clk
0:02:09.5]} 15... Qe6 {[%clk 0:02:24.4]} 16. Qc2 {[%clk 0:02:07.5]} 16... a5
{[%clk 0:02:07.7]} 17. b4 {[%clk 0:01:59.4]} 17... b6 {[%clk 0:02:04.5]} 18. f3
{[%clk 0:01:44.9]} 18... Nf6 {[%clk 0:02:03.5]} 19. e4 {[%clk 0:01:45.1]} 19...
Nd7 {[%clk 0:01:59.8]} 20. Rfc1 {[%clk 0:01:34.1]} 20... Ne5 {[%clk 0:01:40.5]}
21. c5 {[%clk 0:01:30.6]} 21... dxc5 {[%clk 0:01:39]} 22. bxc5 {[%clk
0:01:29.6]} 22... b5 {[%clk 0:01:39.5]} 23. Qc3 {[%clk 0:01:15.1]} 23... f6
{[%clk 0:01:22.4]} 24. Bf1 {[%clk 0:01:08.7]} 24... Red8 {[%clk 0:01:11.9]} 25.
Bf2 {[%clk 0:01:08.3]} 25... b4 {[%clk 0:01:02.2]} 26. axb4 {[%clk 0:00:48.2]}
26... axb4 {[%clk 0:01:01.6]} 27. Rxa8 {[%clk 0:00:49.1]} 27... Rxa8 {[%clk
0:00:53.3]} 28. Bc4 {[%clk 0:00:31.8]} 28... Nxc4 {[%clk 0:00:41.5]} 29. Qxc4
{[%clk 0:00:32.7]} 29... Qxc4 {[%clk 0:00:42]} 30. Rxc4 {[%clk 0:00:32.9]} 30...
Ra1+ {[%clk 0:00:42.7]} 31. Kg2 {[%clk 0:00:26.7]} 31... Bb5 {[%clk 0:00:42.7]}
32. Rxb4 {[%clk 0:00:17.5]} 32... Bf1+ {[%clk 0:00:42.9]} 33. Kg1 {[%clk
0:00:17.8]} 33... Bh3+ {[%clk 0:00:40.3]} 34. Be1 {[%clk 0:00:18.7]} 34... Rxe1+
{[%clk 0:00:39.4]} 35. Kf2 {[%clk 0:00:19.6]} 35... Rc1 {[%clk 0:00:35.5]} 36.
g4 {[%clk 0:00:13.2]} 36... h5 {[%clk 0:00:28]} 37. Rb8+ {[%clk 0:00:08.4]}
37... Kf7 {[%clk 0:00:27]} 38. Kg3 {[%clk 0:00:09.3]} 38... hxg4 {[%clk
0:00:27]} 39. fxg4 {[%clk 0:00:10.2]} 39... Bf1 {[%clk 0:00:27.7]} 40. h4 {[%clk
0:00:09]} 40... Rxc5 {[%clk 0:00:27.8]} 41. h5 {[%clk 0:00:09.3]} 41... Be2
{[%clk 0:00:28]} 42. Rb3 {[%clk 0:00:07.8]} 42... Rc4 {[%clk 0:00:26.7]} 43. Re3
{[%clk 0:00:08.1]} 43... Bd1 {[%clk 0:00:27.2]} 44. Kh4 {[%clk 0:00:07.4]} 44...
Bc2 {[%clk 0:00:27]} 45. e5 {[%clk 0:00:06.9]} 45... f5 {[%clk 0:00:27.6]} 46.
Kg5 {[%clk 0:00:06.3]} 46... Rxg4# {[%clk 0:00:27.1]} 0-1

[Event "*** Titled Tuesday Blitz"]
[Site "Chess.com"]
[Date "2020.05.12"]
[Round "7"]
[White "adriangschnitzer"]
[Black "isla88"]
[Result "0-1"]
[WhiteElo "2486"]
[BlackElo "2315"]
[TimeControl "180+1"]
[EndTime "11:16:44 PDT"]
[Termination "isla88 won by resignation"]

1. e4 {[%clk 0:03:00.9]} 1... c5 {[%clk 0:02:58.8]} 2. Nf3 {[%clk 0:03:00.4]}
2... Nc6 {[%clk 0:02:58.1]} 3. d4 {[%clk 0:02:59.6]} 3... cxd4 {[%clk 0:02:59]}
4. Nxd4 {[%clk 0:03:00.4]} 4... e5 {[%clk 0:02:59]} 5. Nb5 {[%clk 0:03:00.3]}
5... d6 {[%clk 0:02:59.3]} 6. N1c3 {[%clk 0:02:54]} 6... a6 {[%clk 0:02:58.5]}
7. Na3 {[%clk 0:02:54.1]} 7... Be7 {[%clk 0:02:59.1]} 8. Nc4 {[%clk 0:02:49.7]}
8... b5 {[%clk 0:02:58.6]} 9. Ne3 {[%clk 0:02:50.2]} 9... Nf6 {[%clk 0:02:58.8]}
10. g3 {[%clk 0:02:49.8]} 10... h5 {[%clk 0:02:58.4]} 11. h4 {[%clk 0:02:48.3]}
11... Nd4 {[%clk 0:02:57.5]} 12. Bg2 {[%clk 0:02:46.2]} 12... b4 {[%clk
0:02:57.2]} 13. Ncd5 {[%clk 0:02:45.4]} 13... Nxd5 {[%clk 0:02:57.1]} 14. Nxd5
{[%clk 0:02:46.3]} 14... Bg4 {[%clk 0:02:57]} 15. f3 {[%clk 0:02:45.6]} 15...
Be6 {[%clk 0:02:56.9]} 16. Be3 {[%clk 0:02:38.5]} 16... Bxd5 {[%clk 0:02:48.4]}
17. exd5 {[%clk 0:02:38.2]} 17... Rc8 {[%clk 0:02:48]} 18. Bxd4 {[%clk
0:02:31.2]} 18... exd4 {[%clk 0:02:47.7]} 19. Qxd4 {[%clk 0:02:32.1]} 19... Rxc2
{[%clk 0:02:47.1]} 20. O-O {[%clk 0:02:31.3]} 20... O-O {[%clk 0:02:43.9]} 21.
Qxb4 {[%clk 0:02:26.3]} 21... Bf6 {[%clk 0:02:43.6]} 22. Rf2 {[%clk 0:02:19.6]}
22... Bxb2 {[%clk 0:02:42.5]} 23. Rxc2 {[%clk 0:02:10.1]} 23... Bxa1 {[%clk
0:02:42.4]} 24. Rc6 {[%clk 0:02:07]} 24... Qe7 {[%clk 0:02:38.4]} 25. Qe4 {[%clk
0:01:57.2]} 25... Qa7+ {[%clk 0:02:27.2]} 26. Kh2 {[%clk 0:01:53.7]} 26... Qf2
{[%clk 0:02:23.1]} 27. Rxa6 {[%clk 0:01:43.2]} 27... Bd4 {[%clk 0:02:06.1]} 28.
Rxd6 {[%clk 0:01:39.7]} 28... Rb8 {[%clk 0:01:47]} 29. Rd7 {[%clk 0:01:32]}
29... Bc5 {[%clk 0:00:54.6]} 30. d6 {[%clk 0:01:10.8]} 30... Qxa2 {[%clk
0:00:46.8]} 31. Qf5 {[%clk 0:00:36.3]} 31... Bd4 {[%clk 0:00:22.7]} 32. Rc7
{[%clk 0:00:20.3]} 32... g6 {[%clk 0:00:18.9]} 33. Rc8+ {[%clk 0:00:17.9]} 33...
Kg7 {[%clk 0:00:18]} 34. Qd7 {[%clk 0:00:16.9]} 34... Rb2 {[%clk 0:00:14.9]} 35.
Qh3 {[%clk 0:00:09.7]} 35... Qa1 {[%clk 0:00:14.7]} 36. g4 {[%clk 0:00:06.3]}
36... Be5+ {[%clk 0:00:13.2]} 37. Qg3 {[%clk 0:00:04.9]} 37... Bxg3+ {[%clk
0:00:13.3]} 38. Kxg3 {[%clk 0:00:05.8]} 38... Qe1+ {[%clk 0:00:13.7]} 0-1